[Event "Titled Tuesday Blitz June 28 Early 2022"]
[White "Vainio, Ville"]
[Black "Flynn, Jacob"]
[WhiteFideId "507270"]
[BlackFideId "2509393"]
[WhiteElo "2237"]
[BlackElo "1896"]
[Result "0-1"]
[Round "11"]
[TimeControl "180+1"]
[Date "2022.06.28"]
[WhiteClock "0:00:02"]
[BlackClock "0:00:13"]

1. e4 {[%clk 0:03:00]}  e5 {[%clk 0:02:57]} 2. Nf3 {[%clk 0:03:01]}  Nc6 {[%clk 0:02:56]} 3. Bc4 {[%clk 0:03:01]}  Nf6 {[%clk 0:02:55]} 4. d4 {[%clk 0:03:01]}  exd4 {[%clk 0:02:54]} 5. O-O {[%clk 0:03:01]}  Nxe4 {[%clk 0:02:54]} 6. Re1 {[%clk 0:03:02]}  d5 {[%clk 0:02:54]} 7. Bxd5 {[%clk 0:03:02]}  Qxd5 {[%clk 0:02:55]} 8. Nc3 {[%clk 0:03:02]}  Qh5 {[%clk 0:02:56]} 9. Nxe4 {[%clk 0:02:58]}  Be6 {[%clk 0:02:56]} 10. Bg5 {[%clk 0:02:58]}  Bd6 {[%clk 0:02:54]} 11. Nxd6+ {[%clk 0:02:57]}  cxd6 {[%clk 0:02:54]} 12. Bf4 {[%clk 0:02:58]}  Qd5 {[%clk 0:02:53]} 13. c3 {[%clk 0:02:57]}  Rc8 {[%clk 0:02:49]} 14. Nxd4 {[%clk 0:02:42]}  Nxd4 {[%clk 0:02:49]} 15. Qxd4 {[%clk 0:02:41]}  Qxd4 {[%clk 0:02:48]} 16. cxd4 {[%clk 0:02:41]}  Kd7 {[%clk 0:02:48]} 17. Re2 {[%clk 0:02:30]}  Rc4 {[%clk 0:02:23]} 18. Rd1 {[%clk 0:01:44]}  Rhc8 {[%clk 0:01:50]} 19. h3 {[%clk 0:01:42]}  Rc2 {[%clk 0:01:45]} 20. Rdd2 {[%clk 0:01:42]}  Rxd2 {[%clk 0:01:43]} 21. Rxd2 {[%clk 0:01:40]}  Bxa2 {[%clk 0:01:41]} 22. f3 {[%clk 0:01:25]}  Bd5 {[%clk 0:01:26]} 23. Kf2 {[%clk 0:01:20]}  f6 {[%clk 0:01:17]} 24. Ke3 {[%clk 0:01:13]}  g5 {[%clk 0:01:14]} 25. Bg3 {[%clk 0:01:12]}  h5 {[%clk 0:01:13]} 26. h4 {[%clk 0:00:58]}  Rc1 {[%clk 0:01:06]} 27. hxg5 {[%clk 0:00:56]}  fxg5 {[%clk 0:01:06]} 28. f4 {[%clk 0:00:44]}  g4 {[%clk 0:01:02]} 29. f5 {[%clk 0:00:33]}  Rh1 {[%clk 0:00:59]} 30. Kf4 {[%clk 0:00:30]}  h4 {[%clk 0:00:53]} 31. Bf2 {[%clk 0:00:23]}  g3 {[%clk 0:00:53]} 32. Be3 {[%clk 0:00:20]}  h3 {[%clk 0:00:31]} 33. gxh3 {[%clk 0:00:21]}  g2 {[%clk 0:00:31]} 34. Kg4 {[%clk 0:00:17]}  g1=Q+ {[%clk 0:00:30]} 35. Bxg1 {[%clk 0:00:16]}  Rxg1+ {[%clk 0:00:31]} 36. Kf4 {[%clk 0:00:15]}  b5 {[%clk 0:00:20]} 37. h4 {[%clk 0:00:14]}  a5 {[%clk 0:00:20]} 38. h5 {[%clk 0:00:13]}  b4 {[%clk 0:00:15]} 39. f6 {[%clk 0:00:13]}  Rh1 {[%clk 0:00:14]} 40. Kg5 {[%clk 0:00:12]}  a4 {[%clk 0:00:14]} 41. Rd3 {[%clk 0:00:12]}  a3 {[%clk 0:00:04]} 42. bxa3 {[%clk 0:00:10]}  b3 {[%clk 0:00:04]} 43. Rd2 {[%clk 0:00:09]}  Rg1+ {[%clk 0:00:02]} 44. Kh6 {[%clk 0:00:08]}  Ke8 {[%clk 0:00:02]} 45. a4 {[%clk 0:00:06]}  Kf7 {[%clk 0:00:03]} 46. a5 {[%clk 0:00:06]}  Kxf6 {[%clk 0:00:02]} 47. a6 {[%clk 0:00:06]}  Ke7 {[%clk 0:00:03]} 48. a7 {[%clk 0:00:06]}  Ra1 {[%clk 0:00:04]} 49. Re2+ {[%clk 0:00:05]}  Kd7 {[%clk 0:00:03]} 50. Rg2 {[%clk 0:00:04]}  Kc6 {[%clk 0:00:04]} 51. Rg7 {[%clk 0:00:03]}  b2 {[%clk 0:00:03]} 52. Rg8 {[%clk 0:00:03]}  b1=Q {[%clk 0:00:03]} 53. a8=Q+ {[%clk 0:00:02]}  Rxa8 {[%clk 0:00:03]} 54. Rxa8 {[%clk 0:00:01]}  Qc1+ {[%clk 0:00:03]} 55. Kg7 {[%clk 0:00:02]}  Qg5+ {[%clk 0:00:02]} 56. Kf8 {[%clk 0:00:01]}  Qxh5 {[%clk 0:00:02]} 57. Ke7 {[%clk 0:00:02]}  Qf7+ {[%clk 0:00:02]} 58. Kd8 {[%clk 0:00:01]}  Qg8+ {[%clk 0:00:02]} 59. Ke7 {[%clk 0:00:02]}  Qxa8 {[%clk 0:00:02]} 60. Kf6 {[%clk 0:00:02]}  Qd8+ {[%clk 0:00:02]} 61. Kf5 {[%clk 0:00:02]}  Qe7 {[%clk 0:00:03]} 62. Kf4 {[%clk 0:00:02]}  Qe4+ {[%clk 0:00:03]} 63. Kg5 {[%clk 0:00:03]}  Qxd4 {[%clk 0:00:04]} 64. Kf5 {[%clk 0:00:03]}  Qe5+ {[%clk 0:00:04]} 65. Kg4 {[%clk 0:00:03]}  Kd7 {[%clk 0:00:05]} 66. Kh4 {[%clk 0:00:02]}  Ke6 {[%clk 0:00:06]} 67. Kg4 {[%clk 0:00:03]}  Bc6 {[%clk 0:00:07]} 68. Kh4 {[%clk 0:00:03]}  d5 {[%clk 0:00:08]} 69. Kg4 {[%clk 0:00:04]}  d4 {[%clk 0:00:09]} 70. Kh3 {[%clk 0:00:03]}  d3 {[%clk 0:00:10]} 71. Kh4 {[%clk 0:00:03]}  d2 {[%clk 0:00:10]} 72. Kh3 {[%clk 0:00:03]}  Bd7 {[%clk 0:00:11]} 73. Kh4 {[%clk 0:00:04]}  d1=Q {[%clk 0:00:12]} 74. Kh3 {[%clk 0:00:02]}  Qd3+ {[%clk 0:00:12]} 75. Kg2 {[%clk 0:00:02]}  Qee2+ {[%clk 0:00:12]} 76. Kg1 {[%clk 0:00:02]}  Qdd1# {[%clk 0:00:13]} 0-1


[Site "https://www.chess.com"]

[Event "Titled Tuesday Blitz June 28 Early 2022"]
[White "Valle Maytin, Luis Enrique"]
[Black "Iinuma, Paul Y"]
[WhiteFideId "3503666"]
[BlackFideId "2031809"]
[WhiteElo "2321"]
[BlackElo "2052"]
[Result "0-1"]
[Round "11"]
[TimeControl "180+1"]
[Date "2022.06.28"]
[WhiteClock "0:02:02"]
[BlackClock "0:00:25"]

1. e4 {[%clk 0:03:00]}  c5 {[%clk 0:02:49]} 2. Nf3 {[%clk 0:03:01]}  d6 {[%clk 0:02:48]} 3. d4 {[%clk 0:03:01]}  cxd4 {[%clk 0:02:48]} 4. Nxd4 {[%clk 0:03:02]}  Nf6 {[%clk 0:02:49]} 5. Nc3 {[%clk 0:03:02]}  g6 {[%clk 0:02:49]} 6. Be3 {[%clk 0:03:01]}  Bg7 {[%clk 0:02:49]} 7. Bc4 {[%clk 0:03:01]}  O-O {[%clk 0:02:49]} 8. Bb3 {[%clk 0:03:00]}  Ng4 {[%clk 0:02:43]} 9. Bg5 {[%clk 0:02:59]}  Qb6 {[%clk 0:02:17]} 10. Be3 {[%clk 0:02:58]}  Nxe3 {[%clk 0:02:14]} 11. fxe3 {[%clk 0:02:59]}  e5 {[%clk 0:02:04]} 12. Nd5 {[%clk 0:02:57]}  Qa5+ {[%clk 0:02:04]} 13. c3 {[%clk 0:02:54]}  exd4 {[%clk 0:02:02]} 14. exd4 {[%clk 0:02:55]}  Nc6 {[%clk 0:01:51]} 15. O-O {[%clk 0:02:56]}  Be6 {[%clk 0:01:42]} 16. Qf3 {[%clk 0:02:51]}  Qd8 {[%clk 0:01:22]} 17. Rae1 {[%clk 0:02:50]}  Kh8 {[%clk 0:01:20]} 18. Bc2 {[%clk 0:02:46]}  Qa5 {[%clk 0:01:06]} 19. a4 {[%clk 0:02:37]}  Qd8 {[%clk 0:00:50]} 20. Nf4 {[%clk 0:02:34]}  Bc4 {[%clk 0:00:47]} 21. Rf2 {[%clk 0:02:33]}  Nxd4 {[%clk 0:00:43]} 22. cxd4 {[%clk 0:02:30]}  Bxd4 {[%clk 0:00:44]} 23. Kh1 {[%clk 0:02:29]}  Bxf2 {[%clk 0:00:43]} 24. Qxf2 {[%clk 0:02:30]}  Qf6 {[%clk 0:00:43]} 25. g3 {[%clk 0:02:24]}  g5 {[%clk 0:00:33]} 26. Nh3 {[%clk 0:02:22]}  Qxf2 {[%clk 0:00:31]} 27. Nxf2 {[%clk 0:02:23]}  h6 {[%clk 0:00:31]} 28. b3 {[%clk 0:02:22]}  Be6 {[%clk 0:00:30]} 29. b4 {[%clk 0:02:22]}  d5 {[%clk 0:00:28]} 30. e5 {[%clk 0:02:21]}  Rac8 {[%clk 0:00:29]} 31. Bd3 {[%clk 0:02:21]}  Rc3 {[%clk 0:00:28]} 32. a5 {[%clk 0:02:19]}  Rfc8 {[%clk 0:00:28]} 33. a6 {[%clk 0:02:18]}  bxa6 {[%clk 0:00:28]} 34. Bxa6 {[%clk 0:02:19]}  Rb8 {[%clk 0:00:27]} 35. b5 {[%clk 0:02:10]}  d4 {[%clk 0:00:28]} 36. Ne4 {[%clk 0:02:09]}  Bd5 {[%clk 0:00:28]} 37. Kg1 {[%clk 0:02:09]}  Re3 {[%clk 0:00:26]} 38. Rxe3 {[%clk 0:02:09]}  dxe3 {[%clk 0:00:27]} 39. Nf6 {[%clk 0:02:08]}  Bc4 {[%clk 0:00:26]} 40. Ne4 {[%clk 0:02:04]}  Bxb5 {[%clk 0:00:24]} 41. Bxb5 {[%clk 0:02:02]}  Rxb5 {[%clk 0:00:25]} 0-1


[Site "https://www.chess.com"]

[Event "Titled Tuesday Blitz June 28 Early 2022"]
[White "Von Buelow, Georg"]
[Black "Pirvulescu, Ekaterina"]
[WhiteFideId "4620658"]
[BlackFideId "13506374"]
[WhiteElo "2146"]
[BlackElo "1740"]
[Result "0-1"]
[Round "11"]
[TimeControl "180+1"]
[Date "2022.06.28"]
[WhiteClock "0:00:04"]
[BlackClock "0:00:02"]

1. e4 {[%clk 0:03:00]}  c5 {[%clk 0:02:08]} 2. Nf3 {[%clk 0:02:59]}  g6 {[%clk 0:02:06]} 3. d4 {[%clk 0:02:59]}  cxd4 {[%clk 0:02:05]} 4. Nxd4 {[%clk 0:03:00]}  Nc6 {[%clk 0:02:05]} 5. c4 {[%clk 0:03:00]}  d6 {[%clk 0:02:04]} 6. Be3 {[%clk 0:02:55]}  Nf6 {[%clk 0:01:54]} 7. Nc3 {[%clk 0:02:55]}  Ng4 {[%clk 0:01:47]} 8. Nxc6 {[%clk 0:02:54]}  Nxe3 {[%clk 0:01:47]} 9. Nxd8 {[%clk 0:02:54]}  Nxd1 {[%clk 0:01:47]} 10. Rxd1 {[%clk 0:02:54]}  Kxd8 {[%clk 0:01:46]} 11. c5 {[%clk 0:02:51]}  Be6 {[%clk 0:01:45]} 12. cxd6 {[%clk 0:02:50]}  exd6 {[%clk 0:01:45]} 13. Be2 {[%clk 0:02:15]}  Rc8 {[%clk 0:01:25]} 14. O-O {[%clk 0:02:14]}  Bg7 {[%clk 0:01:13]} 15. Rxd6+ {[%clk 0:02:05]}  Ke7 {[%clk 0:01:10]} 16. Rd3 {[%clk 0:01:50]}  Bc4 {[%clk 0:01:09]} 17. Nd5+ {[%clk 0:01:43]}  Bxd5 {[%clk 0:00:43]} 18. exd5 {[%clk 0:01:43]}  Rc2 {[%clk 0:00:37]} 19. d6+ {[%clk 0:01:25]}  Kd8 {[%clk 0:00:33]} 20. Bg4 {[%clk 0:01:04]}  f5 {[%clk 0:00:31]} 21. Bf3 {[%clk 0:01:03]}  Rxb2 {[%clk 0:00:31]} 22. a3 {[%clk 0:00:29]}  Kd7 {[%clk 0:00:28]} 23. g3 {[%clk 0:00:20]}  Be5 {[%clk 0:00:25]} 24. Rc1 {[%clk 0:00:13]}  Bxd6 {[%clk 0:00:22]} 25. Rcd1 {[%clk 0:00:12]}  Rb6 {[%clk 0:00:23]} 26. Kg2 {[%clk 0:00:12]}  Kc7 {[%clk 0:00:20]} 27. Rc1+ {[%clk 0:00:11]}  Kb8 {[%clk 0:00:20]} 28. Rcd1 {[%clk 0:00:09]}  Bc7 {[%clk 0:00:18]} 29. Rd7 {[%clk 0:00:09]}  a6 {[%clk 0:00:12]} 30. Rg7 {[%clk 0:00:08]}  Rb2 {[%clk 0:00:09]} 31. Rdd7 {[%clk 0:00:06]}  Rc8 {[%clk 0:00:05]} 32. Rxh7 {[%clk 0:00:07]}  Rc2 {[%clk 0:00:03]} 33. Bd5 {[%clk 0:00:05]}  Rc3 {[%clk 0:00:02]} 34. Be6 {[%clk 0:00:04]}  Re8 {[%clk 0:00:01]} 35. Bf7 {[%clk 0:00:04]}  Re2 {[%clk 0:00:02]} 36. Bxg6 {[%clk 0:00:04]}  Rcc2 {[%clk 0:00:02]} 0-1


[Site "https://www.chess.com"]

[Event "Titled Tuesday Blitz June 28 Early 2022"]
[White "Weishaeutel, Moritz"]
[Black "Liyanage, Ranindu Dilshan"]
[WhiteFideId "12967300"]
[BlackFideId "9915834"]
[WhiteElo "2002"]
[BlackElo "1858"]
[Result "0-1"]
[Round "11"]
[TimeControl "180+1"]
[Date "2022.06.28"]
[WhiteClock "0:00:01"]
[BlackClock "0:00:06"]

1. e4 {[%clk 0:03:00]}  e5 {[%clk 0:02:59]} 2. Nf3 {[%clk 0:02:59]}  Nc6 {[%clk 0:03:00]} 3. Nc3 {[%clk 0:02:59]}  Nf6 {[%clk 0:03:00]} 4. a3 {[%clk 0:02:59]}  h6 {[%clk 0:02:53]} 5. d4 {[%clk 0:02:56]}  exd4 {[%clk 0:02:51]} 6. Nxd4 {[%clk 0:02:57]}  Bc5 {[%clk 0:02:47]} 7. Be3 {[%clk 0:02:52]}  Bb6 {[%clk 0:02:40]} 8. Be2 {[%clk 0:02:38]}  O-O {[%clk 0:02:38]} 9. O-O {[%clk 0:02:38]}  Re8 {[%clk 0:02:37]} 10. Nxc6 {[%clk 0:01:47]}  bxc6 {[%clk 0:02:34]} 11. Bxb6 {[%clk 0:01:47]}  axb6 {[%clk 0:02:35]} 12. Bf3 {[%clk 0:01:47]}  Bb7 {[%clk 0:02:24]} 13. Re1 {[%clk 0:01:41]}  d6 {[%clk 0:02:22]} 14. Qd2 {[%clk 0:01:35]}  Nd7 {[%clk 0:02:17]} 15. g3 {[%clk 0:01:34]}  Ne5 {[%clk 0:02:13]} 16. Bg2 {[%clk 0:01:35]}  Nc4 {[%clk 0:02:13]} 17. Qc1 {[%clk 0:01:34]}  Qf6 {[%clk 0:02:13]} 18. Nd1 {[%clk 0:01:22]}  c5 {[%clk 0:02:06]} 19. e5 {[%clk 0:00:52]}  Nxe5 {[%clk 0:01:37]} 20. Bxb7 {[%clk 0:00:53]}  Nf3+ {[%clk 0:01:37]} 21. Bxf3 {[%clk 0:00:53]}  Rxe1+ {[%clk 0:01:38]} 22. Kg2 {[%clk 0:00:54]}  Rae8 {[%clk 0:01:38]} 23. Qd2 {[%clk 0:00:54]}  g5 {[%clk 0:01:28]} 24. Rc1 {[%clk 0:00:51]}  Qd4 {[%clk 0:01:17]} 25. Qd3 {[%clk 0:00:20]}  g4 {[%clk 0:01:07]} 26. Bd5 {[%clk 0:00:18]}  Qxd3 {[%clk 0:00:58]} 27. cxd3 {[%clk 0:00:19]}  R8e2 {[%clk 0:00:55]} 28. Bb3 {[%clk 0:00:15]}  Rd2 {[%clk 0:00:44]} 29. Rc4 {[%clk 0:00:10]}  h5 {[%clk 0:00:31]} 30. Ne3 {[%clk 0:00:09]}  Rxd3 {[%clk 0:00:20]} 31. Bc2 {[%clk 0:00:10]}  Rd4 {[%clk 0:00:20]} 32. Rc3 {[%clk 0:00:09]}  Rd2 {[%clk 0:00:15]} 33. Bd3 {[%clk 0:00:05]}  Rxb2 {[%clk 0:00:11]} 34. Nd5 {[%clk 0:00:03]}  Rd1 {[%clk 0:00:10]} 35. Nf6+ {[%clk 0:00:02]}  Kf8 {[%clk 0:00:09]} 36. Nxh5 {[%clk 0:00:03]}  Rdd2 {[%clk 0:00:09]} 37. Nf4 {[%clk 0:00:01]}  Rxf2+ {[%clk 0:00:09]} 38. Kg1 {[%clk 0:00:02]}  Rfd2 {[%clk 0:00:09]} 39. Bf1 {[%clk 0:00:02]}  Rb1 {[%clk 0:00:08]} 40. Nd3 {[%clk 0:00:01]}  Rdd1 {[%clk 0:00:07]} 41. Nc1 {[%clk 0:00:01]}  Rbxc1 {[%clk 0:00:06]} 0-1


[Site "https://www.chess.com"]

[Event "Titled Tuesday Blitz June 28 Early 2022"]
[White "Zochowski, Kacper"]
[Black "Silvestre, Christian"]
[WhiteFideId "1125494"]
[BlackFideId "30956269"]
[WhiteElo "2214"]
[BlackElo "2357"]
[Result "0-1"]
[Round "11"]
[TimeControl "180+1"]
[Date "2022.06.28"]
[WhiteClock "0:00:13"]
[BlackClock "0:00:11"]

1. d4 {[%clk 0:03:00]}  Nf6 {[%clk 0:02:58]} 2. Bg5 {[%clk 0:03:00]}  d6 {[%clk 0:02:59]} 3. Nd2 {[%clk 0:02:58]}  e5 {[%clk 0:02:52]} 4. e3 {[%clk 0:02:57]}  h6 {[%clk 0:02:49]} 5. Bh4 {[%clk 0:02:55]}  Be7 {[%clk 0:02:44]} 6. Bd3 {[%clk 0:02:48]}  Nc6 {[%clk 0:02:25]} 7. c3 {[%clk 0:02:45]}  Bg4 {[%clk 0:02:23]} 8. f3 {[%clk 0:02:44]}  Bd7 {[%clk 0:02:19]} 9. Ne2 {[%clk 0:02:43]}  Nd5 {[%clk 0:02:12]} 10. Bf2 {[%clk 0:02:38]}  Bg5 {[%clk 0:02:02]} 11. Nf1 {[%clk 0:02:37]}  exd4 {[%clk 0:01:57]} 12. e4 {[%clk 0:02:20]}  Ne3 {[%clk 0:01:55]} 13. Bxe3 {[%clk 0:02:18]}  dxe3 {[%clk 0:01:55]} 14. f4 {[%clk 0:02:18]}  Bf6 {[%clk 0:01:34]} 15. Nxe3 {[%clk 0:02:17]}  O-O {[%clk 0:01:33]} 16. O-O {[%clk 0:02:16]}  Re8 {[%clk 0:01:32]} 17. Qc2 {[%clk 0:02:02]}  a6 {[%clk 0:01:25]} 18. Rae1 {[%clk 0:02:01]}  b5 {[%clk 0:01:24]} 19. Nd5 {[%clk 0:01:59]}  b4 {[%clk 0:01:16]} 20. cxb4 {[%clk 0:01:20]}  Rb8 {[%clk 0:01:14]} 21. a3 {[%clk 0:01:17]}  a5 {[%clk 0:01:12]} 22. b5 {[%clk 0:01:06]}  Nd4 {[%clk 0:01:10]} 23. Nxd4 {[%clk 0:01:05]}  Bxd4+ {[%clk 0:01:08]} 24. Kh1 {[%clk 0:01:05]}  Bxb5 {[%clk 0:01:03]} 25. Nxc7 {[%clk 0:00:47]}  Bxd3 {[%clk 0:00:52]} 26. Qxd3 {[%clk 0:00:48]}  Qxc7 {[%clk 0:00:46]} 27. Qxd4 {[%clk 0:00:48]}  Qb6 {[%clk 0:00:40]} 28. Qxb6 {[%clk 0:00:43]}  Rxb6 {[%clk 0:00:41]} 29. Rf2 {[%clk 0:00:41]}  Reb8 {[%clk 0:00:41]} 30. Ree2 {[%clk 0:00:39]}  a4 {[%clk 0:00:41]} 31. g3 {[%clk 0:00:37]}  Kf8 {[%clk 0:00:35]} 32. Kg2 {[%clk 0:00:36]}  Ke7 {[%clk 0:00:34]} 33. Rc2 {[%clk 0:00:36]}  R8b7 {[%clk 0:00:33]} 34. Rfe2 {[%clk 0:00:36]}  Rb3 {[%clk 0:00:27]} 35. e5 {[%clk 0:00:31]}  d5 {[%clk 0:00:27]} 36. Red2 {[%clk 0:00:29]}  Rd7 {[%clk 0:00:20]} 37. Rd4 {[%clk 0:00:26]}  Rdb7 {[%clk 0:00:18]} 38. Rxa4 {[%clk 0:00:20]}  Rxb2 {[%clk 0:00:18]} 39. Rxb2 {[%clk 0:00:20]}  Rxb2+ {[%clk 0:00:19]} 40. Kh3 {[%clk 0:00:20]}  Rb3 {[%clk 0:00:19]} 41. Ra7+ {[%clk 0:00:19]}  Ke6 {[%clk 0:00:19]} 42. Ra6+ {[%clk 0:00:19]}  Kf5 {[%clk 0:00:18]} 43. Rd6 {[%clk 0:00:17]}  Ke4 {[%clk 0:00:15]} 44. e6 {[%clk 0:00:13]}  fxe6 {[%clk 0:00:15]} 45. Rxe6+ {[%clk 0:00:13]}  Kf3 {[%clk 0:00:14]} 46. Rg6 {[%clk 0:00:13]}  d4 {[%clk 0:00:13]} 47. Rxg7 {[%clk 0:00:13]}  Rxa3 {[%clk 0:00:13]} 48. Rd7 {[%clk 0:00:14]}  Ke3 {[%clk 0:00:13]} 49. f5 {[%clk 0:00:14]}  d3 {[%clk 0:00:13]} 50. f6 {[%clk 0:00:14]}  Ra6 {[%clk 0:00:12]} 51. f7 {[%clk 0:00:14]}  Rf6 {[%clk 0:00:12]} 52. Kh4 {[%clk 0:00:14]}  d2 {[%clk 0:00:12]} 53. Kh5 {[%clk 0:00:13]}  Rxf7 {[%clk 0:00:12]} 54. Rxd2 {[%clk 0:00:09]}  Kxd2 {[%clk 0:00:12]} 55. Kxh6 {[%clk 0:00:10]}  Ke3 {[%clk 0:00:12]} 56. g4 {[%clk 0:00:11]}  Kf4 {[%clk 0:00:12]} 57. g5 {[%clk 0:00:12]}  Kf5 {[%clk 0:00:10]} 58. g6 {[%clk 0:00:12]}  Rf6 {[%clk 0:00:10]} 59. Kh7 {[%clk 0:00:10]}  Rxg6 {[%clk 0:00:11]} 60. h4 {[%clk 0:00:11]}  Rg1 {[%clk 0:00:10]} 61. h5 {[%clk 0:00:12]}  Kg5 {[%clk 0:00:10]} 62. h6 {[%clk 0:00:12]}  Rh1 {[%clk 0:00:11]} 63. Kg7 {[%clk 0:00:13]}  Rxh6 {[%clk 0:00:11]} 0-1


[Site "https://www.chess.com"]

[Event "Titled Tuesday Blitz June 28 Early 2022"]
[White "Zubritskiy, Artyom"]
[Black "Sokolovsky, Yahli"]
[WhiteFideId "4181247"]
[BlackFideId "2820242"]
[WhiteElo "2478"]
[BlackElo "1770"]
[Result "1-0"]
[Round "11"]
[TimeControl "180+1"]
[Date "2022.06.28"]
[WhiteClock "0:00:07"]
[BlackClock "0:00:03"]

1. d4 {[%clk 0:02:57]}  d6 {[%clk 0:02:59]} 2. Nf3 {[%clk 0:02:57]}  g6 {[%clk 0:02:59]} 3. g3 {[%clk 0:02:57]}  Bg7 {[%clk 0:02:59]} 4. Bg2 {[%clk 0:02:55]}  Nf6 {[%clk 0:02:53]} 5. c4 {[%clk 0:02:53]}  O-O {[%clk 0:02:53]} 6. O-O {[%clk 0:02:53]}  Nc6 {[%clk 0:02:53]} 7. d5 {[%clk 0:02:53]}  Nb8 {[%clk 0:02:53]} 8. Nc3 {[%clk 0:02:53]}  e5 {[%clk 0:02:53]} 9. dxe6 {[%clk 0:02:51]}  fxe6 {[%clk 0:02:50]} 10. b3 {[%clk 0:02:43]}  Nc6 {[%clk 0:02:34]} 11. Bb2 {[%clk 0:02:42]}  Ne4 {[%clk 0:02:20]} 12. Qc2 {[%clk 0:02:31]}  Nxc3 {[%clk 0:02:15]} 13. Bxc3 {[%clk 0:02:32]}  Bxc3 {[%clk 0:02:14]} 14. Qxc3 {[%clk 0:02:33]}  Qf6 {[%clk 0:02:14]} 15. Rac1 {[%clk 0:02:29]}  Qxc3 {[%clk 0:02:13]} 16. Rxc3 {[%clk 0:02:30]}  Bd7 {[%clk 0:02:10]} 17. Rd1 {[%clk 0:02:20]}  Rad8 {[%clk 0:02:05]} 18. Ng5 {[%clk 0:02:11]}  h6 {[%clk 0:01:57]} 19. Ne4 {[%clk 0:01:58]}  Ne7 {[%clk 0:01:54]} 20. Rcd3 {[%clk 0:01:53]}  Bc6 {[%clk 0:01:50]} 21. Nc5 {[%clk 0:01:50]}  Rf6 {[%clk 0:01:15]} 22. Nxb7 {[%clk 0:01:47]}  Rb8 {[%clk 0:01:14]} 23. Na5 {[%clk 0:01:45]}  Bxg2 {[%clk 0:01:14]} 24. Kxg2 {[%clk 0:01:46]}  Rf5 {[%clk 0:01:14]} 25. c5 {[%clk 0:01:42]}  Rxc5 {[%clk 0:01:04]} 26. Nc4 {[%clk 0:01:42]}  Nc6 {[%clk 0:01:01]} 27. R3d2 {[%clk 0:01:16]}  a5 {[%clk 0:00:59]} 28. Nb2 {[%clk 0:01:12]}  Nb4 {[%clk 0:00:50]} 29. Na4 {[%clk 0:01:11]}  Rc6 {[%clk 0:00:48]} 30. e4 {[%clk 0:01:11]}  Rb5 {[%clk 0:00:44]} 31. f3 {[%clk 0:01:05]}  Kf7 {[%clk 0:00:44]} 32. Kf2 {[%clk 0:00:59]}  Kf6 {[%clk 0:00:43]} 33. Ke2 {[%clk 0:00:59]}  d5 {[%clk 0:00:43]} 34. exd5 {[%clk 0:00:37]}  Nxd5 {[%clk 0:00:32]} 35. Kf2 {[%clk 0:00:37]}  Nb4 {[%clk 0:00:28]} 36. Re2 {[%clk 0:00:28]}  Rd5 {[%clk 0:00:24]} 37. Rdd2 {[%clk 0:00:28]}  Rc1 {[%clk 0:00:21]} 38. a3 {[%clk 0:00:25]}  Nd3+ {[%clk 0:00:21]} 39. Ke3 {[%clk 0:00:22]}  Ne1 {[%clk 0:00:13]} 40. Rxd5 {[%clk 0:00:21]}  exd5 {[%clk 0:00:13]} 41. Kd2 {[%clk 0:00:21]}  Ra1 {[%clk 0:00:11]} 42. Rxe1 {[%clk 0:00:21]}  Rxa3 {[%clk 0:00:12]} 43. Kc2 {[%clk 0:00:20]}  Ra2+ {[%clk 0:00:12]} 44. Nb2 {[%clk 0:00:21]}  c5 {[%clk 0:00:10]} 45. Re8 {[%clk 0:00:16]}  a4 {[%clk 0:00:10]} 46. bxa4 {[%clk 0:00:15]}  c4 {[%clk 0:00:11]} 47. f4 {[%clk 0:00:07]}  d4 {[%clk 0:00:09]} 48. Kb1 {[%clk 0:00:07]}  Ra3 {[%clk 0:00:09]} 49. Nxc4 {[%clk 0:00:08]}  Rb3+ {[%clk 0:00:08]} 50. Nb2 {[%clk 0:00:07]}  Kf5 {[%clk 0:00:09]} 51. Rd8 {[%clk 0:00:06]}  Rb4 {[%clk 0:00:09]} 52. Kc2 {[%clk 0:00:05]}  Kg4 {[%clk 0:00:09]} 53. a5 {[%clk 0:00:05]}  Rb5 {[%clk 0:00:09]} 54. a6 {[%clk 0:00:05]}  Ra5 {[%clk 0:00:09]} 55. Rd6 {[%clk 0:00:05]}  g5 {[%clk 0:00:09]} 56. fxg5 {[%clk 0:00:05]}  hxg5 {[%clk 0:00:10]} 57. Nd3 {[%clk 0:00:05]}  Kh3 {[%clk 0:00:10]} 58. Rh6+ {[%clk 0:00:05]}  Kg2 {[%clk 0:00:10]} 59. Nb4 {[%clk 0:00:06]}  Ra4 {[%clk 0:00:09]} 60. Kb3 {[%clk 0:00:06]}  Ra1 {[%clk 0:00:09]} 61. Kc4 {[%clk 0:00:05]}  Ra4 {[%clk 0:00:08]} 62. Kb5 {[%clk 0:00:06]}  Ra1 {[%clk 0:00:09]} 63. Rd6 {[%clk 0:00:06]}  Kxh2 {[%clk 0:00:08]} 64. g4 {[%clk 0:00:07]}  Kg3 {[%clk 0:00:06]} 65. Rxd4 {[%clk 0:00:07]}  Kh4 {[%clk 0:00:07]} 66. Kb6 {[%clk 0:00:08]}  Ra3 {[%clk 0:00:03]} 67. a7 {[%clk 0:00:08]}  Ra4 {[%clk 0:00:02]} 68. Rc4 {[%clk 0:00:07]}  Ra3 {[%clk 0:00:02]} 69. Na6 {[%clk 0:00:07]}  Rc3 {[%clk 0:00:03]} 70. Rxc3 {[%clk 0:00:07]} 1-0